bitfinex-derivatives/quotes_BTCF0:USTF0_20210705
["timestamp","ask_amount","ask_price","bid_price","bid_amount"]
[1625470306888,4.36523026,34149.0,34148.0,0.57726641]
[1625470312754,4.36523026,34149.0,34148.0,0.58163558]
[1625470314113,4.36523026,34149.0,34148.0,0.57726641]
[1625470314362,4.36523026,34149.0,34148.0,0.58163621]
[1625470314615,4.37978718,34149.0,34148.0,0.58163621]
[1625470314713,4.58764718,34149.0,34148.0,0.58163621]
[1625470315965,4.58764718,34149.0,34148.0,0.23629445]
[1625470317020,5.27592435,34149.0,34148.0,0.0633698]
[1625470317468,5.27592435,34149.0,34148.0,0.58213999]
[1625470317871,5.27592435,34149.0,34148.0,0.0633698]
[1625470318822,5.27592435,34149.0,34148.0,0.23629232]
[1625470320425,5.27592435,34149.0,34148.0,0.58214172]
[1625470320875,5.27592435,34149.0,34148.0,1.27383327]
[1625470321576,5.27592435,34149.0,34148.0,1.63379327]
[1625470321676,5.06806435,34149.0,34148.0,1.63379327]
[1625470322028,5.06806435,34149.0,34148.0,2.67124892]
[1625470322128,5.06806435,34149.0,34148.0,2.91182436]
[1625470322229,5.06806435,34149.0,34148.0,6.50552436]
[1625470322532,5.06806435,34149.0,34148.0,7.71582559]
[1625470322629,3.69268866,34149.0,34148.0,7.71582559]
[1625470322879,3.69268866,34149.0,34148.0,7.77282559]
[1625470323131,3.67813174,34149.0,34148.0,7.77282559]
[1625470323331,2.47609813,34149.0,34148.0,9.15600406]
[1625470324283,2.47609813,34149.0,34148.0,9.24300406]
[1625470325235,2.23552269,34149.0,34148.0,9.24300406]
[1625470325538,2.23552269,34149.0,34148.0,9.27450406]
[1625470326089,0.17283647,34149.0,34148.0,9.5150795]
[1625470326839,0.1729009,34150.0,34148.0,11.07039209]
[1625470327139,0.1729009,34150.0,34149.0,0.00436591]
[1625470327238,0.1729009,34150.0,34149.0,0.12236591]
[1625470327339,0.1729009,34150.0,34149.0,2.42594219]
[1625470327440,0.50025816,34151.0,34150.0,0.059]
[1625470327541,0.36955816,34151.0,34150.0,0.118]
[1625470327641,0.25255816,34151.0,34150.0,0.175]
[1625470327743,0.03415816,34151.0,34150.0,0.175]
[1625470327838,0.03415816,34151.0,34150.0,0.18549752]
[1625470327939,0.03415816,34151.0,34150.0,0.18986291]
[1625470328042,0.00935816,34151.0,34150.0,0.18986291]
[1625470328140,0.69115551,34156.0,34150.0,6.29811023]
[1625470328240,0.69115551,34156.0,34151.0,0.01049563]
[1625470328340,0.69115551,34156.0,34151.0,0.06949563]
[1625470328441,0.64105551,34156.0,34151.0,0.059]
[1625470328543,0.63245551,34156.0,34151.0,0.059]
[1625470328642,0.63245551,34156.0,34152.0,0.01485239]
[1625470328742,0.63245551,34156.0,34152.0,0.13085239]
[1625470328942,0.63245551,34156.0,34153.0,0.00436504]
[1625470329042,0.63245551,34156.0,34153.0,0.06336504]
[1625470329141,1.04264689,34157.0,34155.0,3.62294691]
[1625470329142,0.006,34157.0,34155.0,3.62294691]
[1625470329245,0.006,34157.0,34156.0,0.057]
[1625470329343,0.006,34157.0,34156.0,0.116]
[1625470329442,0.006,34157.0,34156.0,0.17936504]
[1625470329542,0.006,34157.0,34156.0,3.80221085]
[1625470329842,0.83951464,34159.0,34156.0,3.80221085]
[1625470330095,1.03569199,34161.0,34156.0,3.83371085]
[1625470330202,1.03569199,34161.0,34158.0,0.72172632]
[1625470330292,1.03569199,34161.0,34159.0,0.057]
[1625470330392,1.03569199,34161.0,34159.0,0.175]
[1625470330492,1.03569199,34161.0,34159.0,0.17936489]
[1625470330594,1.20824679,34164.0,34160.0,1.2058775]
[1625470330693,1.20824679,34164.0,34161.0,0.057]
[1625470330795,1.20824679,34164.0,34161.0,0.116]
[1625470330895,1.20824679,34164.0,34161.0,0.175]
[1625470331244,1.20824679,34164.0,34163.0,5.0734]
[1625470331345,1.20824679,34164.0,34163.0,5.49602]
[1625470331644,0.9193,34178.0,34163.0,5.49602]
[1625470331645,1.20737638,34165.0,34163.0,5.49602]
[1625470331744,1.13537638,34165.0,34163.0,5.49602]
[1625470332145,1.13537638,34165.0,34164.0,0.48115088]
[1625470332247,1.13537638,34165.0,34164.0,0.65615088]
[1625470332351,1.37983409,34167.0,34164.0,0.65615088]
[1625470332446,1.30783409,34167.0,34164.0,0.65615088]
[1625470332796,1.30783409,34167.0,34164.0,0.74445088]
[1625470332895,1.55213538,34171.0,34164.0,0.74445088]
[1625470333398,1.55213538,34171.0,34164.0,0.77595088]
[1625470333998,0.24057544,34175.0,34164.0,0.77595088]
[1625470333999,1.55108705,34170.0,34164.0,0.77595088]
[1625470334198,1.55108705,34170.0,34169.0,0.24057544]
[1625470334298,1.55108705,34170.0,34164.0,0.56965088]
[1625470334399,1.55108705,34170.0,34164.0,0.68765088]
[1625470335447,1.55108705,34170.0,34164.0,0.63065088]
[1625470335748,1.55108705,34170.0,34164.0,0.57165088]
[1625470336249,0.24057544,34165.0,34164.0,0.57165088]
[1625470336351,0.24057544,34165.0,34164.0,0.63065088]
[1625470336801,0.24057544,34165.0,34164.0,0.68765088]
[1625470337000,0.24057544,34165.0,34164.0,4.98635088]
[1625470337101,0.24057544,34165.0,34164.0,5.07355088]
[1625470338204,0.24057544,34165.0,34164.0,4.98635088]
[1625470339257,0.24057544,34165.0,34164.0,5.07515088]
[1625470340361,0.24057544,34165.0,34164.0,0.77645088]
[1625470340814,0.24057544,34165.0,34164.0,5.74815088]
[1625470341665,0.24057544,34165.0,34164.0,5.69115088]
[1625470342217,0.24057544,34165.0,34164.0,5.74815088]
[1625470342315,0.24057544,34165.0,34164.0,5.69115088]
[1625470342415,0.24057544,34165.0,34164.0,5.60235088]
[1625470342865,0.24057544,34165.0,34164.0,5.65935088]
[1625470343370,0.24057544,34165.0,34164.0,5.74795088]
[1625470343568,0.24057544,34165.0,34164.0,5.65935088]
[1625470344671,0.24057544,34165.0,34164.0,5.74725088]
[1625470344971,0.24057544,34165.0,34164.0,5.65935088]
[1625470345622,0.24057544,34169.0,34164.0,5.65935088]
[1625470345973,0.24057544,34169.0,34164.0,5.74815088]
[1625470346274,0.24057544,34169.0,34168.0,0.24057544]
[1625470346475,0.24057544,34169.0,34168.0,0.29957544]
[1625470346574,0.24057544,34169.0,34168.0,0.35857544]
[1625470346777,0.24057544,34169.0,34168.0,0.29957544]
[1625470346876,0.24057544,34169.0,34168.0,0.35857544]
[1625470347426,0.23837544,34169.0,34168.0,0.35857544]
[1625470347728,1.61582566,34169.0,34168.0,0.35857544]
[1625470347978,0.23837544,34169.0,34168.0,0.35857544]
[1625470348777,0.23837544,34169.0,34168.0,0.44567544]
[1625470348977,0.23837544,34169.0,34168.0,0.35857544]
[1625470351137,0.23837544,34169.0,34168.0,0.50397544]
[1625470352936,0.23837544,34169.0,34168.0,0.53547544]
[1625470353384,1.20476812,34172.0,34168.0,0.53983687]
[1625470353486,1.20442566,34174.0,34168.0,0.53983687]
[1625470353587,1.16222566,34174.0,34168.0,0.53983687]
[1625470353690,1.09742566,34174.0,34169.0,0.00436108]
[1625470353788,1.04572566,34174.0,34169.0,0.12236108]
[1625470353885,1.04572566,34174.0,34170.0,0.057]
[1625470353986,1.04572566,34174.0,34170.0,0.39922]
[1625470354087,1.03212566,34174.0,34170.0,0.39922]
[1625470354188,0.24057544,34175.0,34171.0,0.00436099]
[1625470354286,0.24057544,34175.0,34174.0,0.24057544]
[1625470354386,0.24057544,34175.0,34174.0,0.29957544]
[1625470354490,0.24057544,34175.0,34174.0,0.35857544]
[1625470354587,0.24057544,34175.0,34174.0,0.41557544]
[1625470355037,0.24057544,34175.0,34174.0,0.41993883]
[1625470355387,0.24057544,34175.0,34174.0,0.50853883]
[1625470355489,0.24057544,34175.0,34174.0,0.50417544]
[1625470356056,0.24057544,34175.0,34174.0,0.53567544]
[1625470356342,0.21047544,34175.0,34174.0,0.53567544]
[1625470356542,0.21047544,34175.0,34174.0,0.54003886]
[1625470357893,0.17067544,34175.0,34174.0,0.54003886]
[1625470359549,0.17067544,34175.0,34174.0,0.53567544]
[1625470359948,0.17067544,34175.0,34174.0,0.54003877]
[1625470360147,0.17067544,34175.0,34174.0,0.53567544]
[1625470361253,0.17067544,34175.0,34174.0,0.5400386]
[1625470363654,0.17067544,34175.0,34174.0,0.53567544]
[1625470364460,0.17067544,34175.0,34174.0,0.5400374]
[1625470365561,1.03098243,34179.0,34174.0,0.5400374]
[1625470365862,1.27118059,34180.0,34174.0,0.5400374]
[1625470366062,1.27118059,34180.0,34175.0,0.00436187]
[1625470366162,1.27118059,34180.0,34175.0,0.12236187]
[1625470366361,1.27118059,34180.0,34179.0,0.24057544]
[1625470366461,1.27118059,34180.0,34179.0,0.41557544]
[1625470366761,1.27118059,34180.0,34179.0,0.35857544]
[1625470368265,1.27118059,34180.0,34179.0,0.41557544]
[1625470369971,0.24057544,34180.0,34179.0,0.41557544]
[1625470373229,1.03085721,34182.0,34179.0,0.41557544]
[1625470373881,1.03102532,34183.0,34179.0,0.41557544]
[1625470374381,1.03102532,34183.0,34180.0,0.00436091]
[1625470374482,1.03102532,34183.0,34182.0,0.24057544]
[1625470374583,0.24057544,34184.0,34182.0,0.35657544]
[1625470374682,0.24057544,34184.0,34182.0,0.41557544]
[1625470375032,1.03093927,34185.0,34182.0,0.41557544]
[1625470375732,1.44330929,34187.0,34182.0,0.41557544]
[1625470375733,1.03064997,34186.0,34182.0,0.41557544]
[1625470376234,1.44330929,34187.0,34182.0,0.41557544]
[1625470376235,1.03116019,34185.0,34182.0,0.41557544]
[1625470376335,0.97256019,34185.0,34182.0,0.41557544]
[1625470376486,0.97256019,34185.0,34184.0,0.48115088]
[1625470376586,0.85576019,34185.0,34184.0,0.78766088]
[1625470376686,0.85576019,34185.0,34184.0,0.84666088]
[1625470376938,1.20295296,34188.0,34184.0,0.84666088]
[1625470378088,1.20295296,34188.0,34185.0,0.0874]
[1625470378287,1.20295296,34188.0,34185.0,0.2054]
[1625470378437,1.20295296,34188.0,34187.0,0.24057544]
[1625470378540,1.20295296,34188.0,34187.0,0.29957544]
[1625470378739,1.37526345,34189.0,34187.0,0.29957544]
[1625470379441,1.20337738,34188.0,34187.0,0.29957544]
[1625470380696,2.57937269,34188.0,34187.0,0.29957544]
[1625470381697,1.20337738,34188.0,34187.0,0.29957544]
[1625470382147,1.46138738,34188.0,34187.0,0.24057544]
[1625470383101,2.83707249,34188.0,34187.0,0.24057544]
[1625470383499,1.46138738,34188.0,34187.0,0.24057544]
[1625470383598,1.46138738,34188.0,34184.0,0.24057544]
[1625470383698,1.47593984,34188.0,34187.0,0.059]
[1625470383798,1.47593984,34188.0,34182.0,0.24057544]
[1625470383899,1.53493984,34188.0,34182.0,0.24057544]
[1625470383999,2.91095843,34188.0,34182.0,0.24057544]
[1625470384150,4.6718,34183.0,34182.0,0.24057544]
[1625470384498,5.15295088,34183.0,34182.0,0.24493892]
[1625470384848,5.15295088,34183.0,34182.0,0.24057544]
[1625470385601,6.35773218,34183.0,34182.0,0.29757544]
[1625470385703,1.68593218,34183.0,34182.0,0.24057544]
[1625470386054,0.48115088,34183.0,34182.0,0.24057544]
[1625470386555,1.68591807,34183.0,34182.0,0.24057544]
[1625470387058,0.48115088,34183.0,34182.0,0.24057544]
[1625470387457,0.48115088,34183.0,34182.0,0.2449392]
[1625470388213,0.48115088,34183.0,34182.0,0.24057544]
[1625470388515,0.54015088,34183.0,34177.0,0.9559]
[1625470388614,0.78072632,34183.0,34179.0,0.061]
[1625470388814,0.78072632,34183.0,34180.0,0.00436394]
[1625470388914,0.78072632,34183.0,34180.0,0.06336394]
[1625470389016,1.98592806,34183.0,34180.0,0.06336394]
[1625470389314,1.98592806,34183.0,34180.0,0.067]
[1625470389517,0.68875954,34181.0,34180.0,0.067]
[1625470389717,0.74775954,34181.0,34180.0,0.067]
[1625470389921,0.74775954,34181.0,34180.0,0.07136388]
[1625470392324,0.74175954,34181.0,34180.0,0.06336388]
[1625470397082,0.75630737,34181.0,34180.0,0.06336388]
[1625470397333,0.74175954,34181.0,34180.0,0.06336388]
[1625470398185,0.7563073,34181.0,34180.0,0.06336388]
[1625470398387,0.74175954,34181.0,34180.0,0.06336388]
[1625470398935,0.75630727,34181.0,34180.0,0.06336388]
[1625470403644,1.96349376,34181.0,34180.0,0.06336388]
[1625470403996,1.28073422,34181.0,34180.0,0.06336388]
[1625470404599,1.28073422,34181.0,34180.0,0.059]
[1625470404801,1.28073422,34181.0,34180.0,0.06336572]
[1625470405953,1.28073422,34181.0,34180.0,0.37423572]
[1625470406755,2.31590927,34181.0,34180.0,0.37423572]
[1625470408509,0.07354773,34181.0,34180.0,0.37423572]
[1625470409212,2.31748935,34181.0,34180.0,0.37423572]
[1625470409661,2.31748935,34181.0,34180.0,1.40453646]
[1625470411619,3.69946622,34181.0,34180.0,1.40453646]
[1625470412121,2.31748935,34181.0,34180.0,1.40453646]
[1625470413773,3.70011574,34181.0,34180.0,1.40453646]
[1625470415877,3.70011574,34181.0,34180.0,2.60754499]
[1625470416180,3.70011574,34181.0,34180.0,2.66454499]
[1625470418283,2.83627694,34181.0,34180.0,3.17979558]
[1625470419688,2.83627694,34181.0,34180.0,4.55434917]
[1625470420386,0.07354773,34181.0,34180.0,0.43123572]
[1625470420838,4.18534773,34181.0,34180.0,0.43123572]
[1625470421238,0.07354773,34181.0,34180.0,0.43123572]
[1625470421550,2.84054093,34181.0,34180.0,4.55521869]
[1625470421991,4.22431334,34181.0,34180.0,4.55521869]
[1625470425805,7.94151334,34181.0,34180.0,4.55521869]
[1625470426009,4.22431334,34181.0,34180.0,4.55521869]
[1625470427564,8.13681334,34181.0,34180.0,4.55521869]
[1625470427713,4.22431334,34181.0,34180.0,4.55521869]
[1625470428465,4.16531334,34181.0,34180.0,4.55521869]
[1625470428665,2.78154093,34181.0,34180.0,4.55521869]
[1625470428866,2.78154093,34181.0,34180.0,4.85479413]
[1625470429369,1.57103544,34181.0,34180.0,6.4022596]
[1625470429969,1.51203544,34181.0,34180.0,6.4022596]
[1625470430772,0.51888687,34181.0,34180.0,6.4022596]
[1625470430973,0.31328687,34181.0,34180.0,6.4022596]
[1625470432424,0.30878687,34181.0,34180.0,6.4022596]
[1625470434027,0.25098687,34181.0,34180.0,6.4022596]
[1625470435279,0.25098687,34181.0,34180.0,10.9440596]
[1625470435381,0.25098687,34181.0,34180.0,10.95446834]
[1625470435585,0.21788687,34181.0,34180.0,10.95446834]
[1625470435680,0.21788687,34181.0,34180.0,10.98596834]
[1625470435780,0.21788687,34181.0,34180.0,6.44416834]
[1625470435982,1.38403249,34186.0,34180.0,6.44416834]
[1625470435983,0.37525571,34183.0,34180.0,6.44416834]
[1625470436081,0.37525571,34183.0,34181.0,0.088]
[1625470436200,0.37525571,34183.0,34181.0,0.147]
[1625470436283,0.37525571,34183.0,34182.0,0.057]
[1625470436385,0.32465571,34183.0,34182.0,4.28332496]
[1625470436483,0.32465571,34183.0,34182.0,4.28770758]
[1625470436833,0.31805571,34183.0,34182.0,4.28770758]
[1625470436934,0.31805571,34183.0,34182.0,4.52828302]
[1625470437033,0.31475571,34183.0,34182.0,4.52828302]
[1625470437136,0.31145571,34183.0,34182.0,4.52828302]
[1625470437432,0.30815571,34183.0,34182.0,4.53868337]
[1625470437736,0.30215571,34183.0,34182.0,4.53868337]
[1625470437834,0.30215571,34183.0,34182.0,4.52828302]
[1625470438036,0.08665492,34183.0,34182.0,4.52828302]
[1625470438136,0.07935492,34183.0,34182.0,4.52828302]
[1625470438384,0.07935492,34183.0,34182.0,4.57017915]
[1625470438484,1.21636091,34188.0,34182.0,4.57017915]
[1625470438584,1.21236091,34188.0,34182.0,4.55978302]
[1625470438734,1.20846091,34188.0,34182.0,4.55978302]
[1625470438835,1.63176824,34190.0,34187.0,2.56643409]
[1625470438836,1.20990122,34189.0,34187.0,2.56643409]
[1625470438937,1.20660122,34189.0,34188.0,0.38527544]
[1625470439035,1.20330122,34189.0,34188.0,0.38527544]
[1625470439136,1.20000122,34189.0,34188.0,0.38965797]
[1625470439336,1.19670122,34189.0,34188.0,0.38965797]
[1625470439437,1.19670122,34189.0,34188.0,1.75845536]
[1625470439638,1.18860122,34189.0,34188.0,1.75845536]
[1625470439840,1.18860122,34189.0,34188.0,1.67075536]
[1625470439991,1.18200122,34189.0,34188.0,0.30195797]
[1625470440090,1.17810122,34189.0,34188.0,0.30195797]
[1625470440191,1.17420122,34189.0,34188.0,0.30195797]
[1625470440392,1.18020122,34189.0,34188.0,0.30195797]
[1625470440492,0.0005,34189.0,34188.0,1.66996692]
[1625470440843,0.23507544,34190.0,34188.0,1.66996692]
[1625470440941,0.23507544,34190.0,34188.0,1.72896692]
[1625470441041,0.23177544,34190.0,34188.0,1.72896692]
[1625470441395,0.23177544,34190.0,34189.0,0.00438253]
[1625470441692,0.23177544,34190.0,34189.0,0.06338253]
[1625470441993,1.61402485,34190.0,34189.0,0.06338253]
[1625470443345,1.61402485,34190.0,34189.0,0.059]
[1625470444648,0.23177544,34190.0,34189.0,0.059]
[1625470449305,0.23177544,34190.0,34189.0,0.06337643]
[1625470450157,0.23177544,34190.0,34189.0,0.059]
[1625470450809,0.54116544,34190.0,34189.0,0.059]
[1625470450923,0.54116544,34190.0,34188.0,0.002]
[1625470451213,0.60016544,34190.0,34188.0,0.002]
[1625470451660,1.23316966,34189.0,34188.0,0.002]
[1625470451762,1.29216966,34189.0,34188.0,0.002]
[1625470452261,1.3066863,34189.0,34188.0,0.002]
[1625470452516,3.55141603,34189.0,34188.0,0.002]
[1625470454767,8.50961603,34189.0,34188.0,0.002]
[1625470459283,8.50961603,34189.0,34187.0,0.002]
[1625470459734,0.0145169,34188.0,34187.0,0.002]
[1625470459835,0.0735169,34188.0,34187.0,0.002]
[1625470460083,2.31930112,34188.0,34187.0,0.002]
[1625470460483,3.01036846,34188.0,34187.0,0.002]
[1625470460986,3.2509439,34188.0,34187.0,0.002]
[1625470461486,4.80573793,34188.0,34187.0,0.002]
[1625470462038,3.2509439,34188.0,34187.0,0.002]
[1625470465296,3.2509439,34188.0,34186.0,0.002]
[1625470465697,0.01451727,34187.0,34186.0,0.002]
[1625470465897,3.01101532,34187.0,34186.0,0.002]
[1625470466750,4.39336446,34187.0,34186.0,0.002]
[1625470467051,4.37884719,34187.0,34186.0,0.002]
[1625470467200,4.37884719,34187.0,34186.0,0.68842005]
[1625470467300,4.3933643,34187.0,34186.0,0.68842005]
[1625470467551,4.37884719,34187.0,34186.0,0.68842005]
[1625470471257,4.37884719,34187.0,34186.0,0.69279884]
[1625470471608,5.34114895,34187.0,34186.0,0.69279884]
[1625470472310,5.34114895,34187.0,34186.0,1.72122385]
[1625470472712,5.34114895,34187.0,34186.0,0.69279884]
[1625470475118,4.37884719,34187.0,34186.0,0.69279884]
[1625470475317,4.39336218,34187.0,34186.0,0.69279884]
[1625470475617,5.35566394,34187.0,34186.0,0.69279884]
[1625470476117,5.35566394,34187.0,34186.0,1.72148083]
[1625470476367,5.35566394,34187.0,34186.0,1.78048083]
[1625470477367,5.35566394,34187.0,34186.0,1.77848083]
[1625470480727,5.35566394,34187.0,34186.0,1.83548083]
[1625470483380,5.29666394,34187.0,34186.0,1.83548083]
[1625470483681,5.35566394,34187.0,34186.0,1.83548083]
[1625470484182,3.9733148,34187.0,34186.0,3.03565909]
[1625470485335,3.95879981,34187.0,34186.0,4.40712066]
[1625470485936,3.95879981,34187.0,34186.0,4.35012066]
[1625470486037,3.95879981,34187.0,34186.0,4.40712066]
[1625470486787,3.95879981,34187.0,34186.0,3.03565909]
[1625470487691,3.89979981,34187.0,34186.0,3.03565909]
[1625470487789,3.91431299,34187.0,34186.0,3.03565909]
[1625470487992,5.29802129,34187.0,34186.0,3.03565909]
[1625470488090,5.28350811,34187.0,34186.0,3.03565909]
[1625470490198,3.89979981,34187.0,34186.0,3.03565909]
[1625470490795,3.89979981,34187.0,34186.0,4.40736962]
[1625470494205,3.95879981,34187.0,34186.0,4.40736962]
[1625470494303,3.89979981,34187.0,34186.0,4.40736962]
[1625470495057,3.95879981,34187.0,34186.0,4.40736962]
[1625470495157,3.89979981,34187.0,34186.0,4.40736962]
[1625470496010,2.93749805,34187.0,34186.0,4.40736962]
[1625470496110,2.93749805,34187.0,34186.0,3.03565909]
[1625470496309,2.99649805,34187.0,34186.0,3.03565909]
[1625470496409,2.93749805,34187.0,34186.0,3.03565909]
[1625470496510,3.65922437,34187.0,34186.0,3.03565909]
[1625470496659,3.65922437,34187.0,34186.0,4.4022693]
[1625470497314,3.71822437,34187.0,34186.0,4.4022693]
[1625470497966,3.71822437,34187.0,34186.0,3.03565909]
[1625470498565,5.1020907,34187.0,34186.0,3.03565909]
[1625470499265,5.11660522,34187.0,34186.0,3.03565909]
[1625470499566,5.05760522,34187.0,34186.0,3.03565909]
[1625470499729,5.11660522,34187.0,34186.0,3.03565909]
[1625470500117,5.1020907,34187.0,34186.0,3.03565909]
[1625470501120,5.0430907,34187.0,34186.0,3.03565909]
[1625470501470,3.65922437,34187.0,34186.0,4.40201531]
[1625470502629,3.71822437,34187.0,34186.0,4.40201531]
[1625470502874,3.65922437,34187.0,34186.0,4.40201531]
[1625470503026,5.04325981,34187.0,34186.0,3.03565909]
[1625470503124,5.10225981,34187.0,34186.0,3.03565909]
[1625470503325,5.11677409,34187.0,34186.0,3.03565909]
[1625470503526,5.05777409,34187.0,34186.0,3.03565909]
[1625470503627,5.05777409,34187.0,34186.0,4.40289078]
[1625470503628,5.27543409,34187.0,34186.0,4.40289078]
[1625470503727,5.27543409,34187.0,34186.0,4.34389078]
[1625470503828,5.33443409,34187.0,34186.0,4.34389078]
[1625470504030,5.33443409,34187.0,34186.0,2.97665909]
[1625470504531,5.33443409,34187.0,34186.0,1.77648083]
[1625470504730,5.33443409,34187.0,34186.0,1.71948083]
[1625470504933,5.31991981,34187.0,34186.0,1.71510204]
[1625470505234,5.33443553,34187.0,34186.0,1.71948203]
[1625470505486,6.89195931,34187.0,34186.0,0.69080004]
[1625470506389,6.89195931,34187.0,34186.0,0.00437999]
[1625470507588,6.89195931,34187.0,34185.0,0.68697745]
[1625470507990,0.01451648,34186.0,34185.0,0.68697745]
[1625470508093,0.07351648,34186.0,34185.0,0.68697745]
[1625470508193,3.83291648,34186.0,34185.0,0.68697745]
[1625470508291,3.83291648,34186.0,34185.0,0.69135781]
[1625470508394,9.71749989,34186.0,34185.0,0.69135781]
[1625470508846,9.71749989,34186.0,34185.0,0.002]
[1625470509643,9.71749989,34186.0,34185.0,0.17326738]
[1625470510994,9.71749989,34186.0,34183.0,0.6890695]
[1625470511246,0.01451717,34185.0,34183.0,0.6890695]
[1625470511446,0.07351717,34185.0,34183.0,0.6890695]
[1625470511546,5.8841273,34184.0,34183.0,0.6890695]
[1625470511646,5.9431273,34184.0,34183.0,0.6890695]
[1625470511846,5.95764453,34184.0,34183.0,0.6890695]
[1625470513000,6.19821997,34184.0,34183.0,0.6890695]
[1625470513253,6.19621997,34184.0,34183.0,0.6890695]
[1625470514203,6.19621997,34184.0,34183.0,0.004]
[1625470516305,6.19621997,34184.0,34182.0,0.002]
[1625470516606,0.01451727,34183.0,34182.0,0.002]
[1625470516760,0.07351727,34183.0,34182.0,0.002]
[1625470517009,4.57103599,34183.0,34182.0,0.002]
[1625470517658,4.55651872,34183.0,34182.0,0.002]
[1625470521418,4.57103618,34183.0,34182.0,0.002]
[1625470523122,5.07103618,34183.0,34182.0,0.002]
[1625470523323,5.13003618,34183.0,34182.0,0.002]
[1625470524673,5.13003618,34183.0,34176.0,0.008]
[1625470525075,0.72172632,34177.0,34176.0,0.008]
[1625470525173,1.56361632,34177.0,34172.0,0.93005158]
[1625470525272,1.62261632,34177.0,34172.0,0.93005158]
[1625470525374,1.62261632,34177.0,34176.0,0.006]
[1625470525677,1.63713737,34177.0,34176.0,0.006]
[1625470525928,6.84893737,34177.0,34176.0,0.006]
[1625470526027,8.92306003,34177.0,34176.0,0.006]
[1625470527586,8.42306003,34177.0,34176.0,0.006]
[1625470527832,8.42306003,34177.0,34174.0,0.008]
[1625470527833,8.92306003,34177.0,34172.0,0.01]
[1625470528132,0.01452295,34176.0,34172.0,0.01]
[1625470528234,0.01452295,34176.0,34168.0,0.51422247]
[1625470528235,0.07352295,34176.0,34168.0,0.02412247]
[1625470528363,0.059,34172.0,34168.0,0.02412247]
[1625470528544,0.118,34172.0,34168.0,0.02412247]
[1625470528643,0.51452395,34171.0,34162.0,1.36755356]
[1625470528755,0.63252395,34171.0,34162.0,1.36755356]
[1625470528938,0.01452412,34170.0,34162.0,1.36755356]
[1625470529038,0.42518412,34170.0,34162.0,1.36755356]
[1625470529136,0.96230176,34163.0,34162.0,1.36755356]
[1625470529237,6.12448176,34163.0,34157.0,1.36975799]
[1625470529337,0.5,34162.0,34157.0,1.36975799]
[1625470529438,0.559,34162.0,34157.0,1.36975799]
[1625470529838,0.559,34162.0,34156.0,1.37007924]
[1625470529940,0.059,34162.0,34156.0,1.37007924]
[1625470530238,0.059,34162.0,34154.0,1.3688359]
[1625470530337,0.059,34162.0,34154.0,1.4278359]
[1625470530539,0.059,34162.0,34155.0,0.00438439]
[1625470530738,0.059,34162.0,34155.0,0.06338439]
[1625470531039,0.059,34162.0,34156.0,0.00438425]
[1625470531138,0.48115088,34157.0,34156.0,0.06338425]
[1625470531241,0.54015088,34157.0,34156.0,0.06338425]
[1625470531438,0.54015088,34157.0,34156.0,0.12038425]
[1625470531593,0.54015088,34157.0,34156.0,0.116]
[1625470531892,0.83108088,34157.0,34156.0,0.116]
[1625470531991,0.83108088,34157.0,34156.0,0.12038422]
[1625470532291,0.83108088,34157.0,34156.0,0.116]
[1625470534897,0.54015088,34157.0,34156.0,0.116]
[1625470536654,0.48115088,34157.0,34156.0,0.116]
[1625470539158,0.48115088,34157.0,34156.0,0.12038171]
[1625470544218,0.006,34160.0,34156.0,0.12038171]
[1625470544317,0.065,34160.0,34156.0,0.12038171]
[1625470544519,0.065,34160.0,34156.0,0.116]
[1625470544619,0.065,34160.0,34156.0,0.35615]
[1625470544818,0.065,34160.0,34157.0,0.00438291]
[1625470544920,0.065,34160.0,34157.0,0.06338291]
[1625470545369,0.065,34160.0,34158.0,0.00438304]
[1625470545470,0.065,34160.0,34158.0,0.06338304]
[1625470545570,0.72172632,34159.0,34158.0,0.06338304]
[1625470545670,0.78072632,34159.0,34158.0,0.06338304]
[1625470546372,0.059,34159.0,34158.0,0.06338304]
[1625470547628,0.54015088,34159.0,34158.0,0.30395848]
[1625470547727,0.54015088,34159.0,34158.0,0.36095848]
[1625470551081,0.059,34159.0,34158.0,0.12038304]
[1625470551832,0.54015088,34159.0,34158.0,0.36095848]
[1625470552387,0.006,34160.0,34158.0,0.41995848]
[1625470552936,0.006,34160.0,34159.0,0.00438196]
[1625470553037,0.006,34160.0,34159.0,2.66194738]
[1625470553137,0.006,34160.0,34159.0,2.71894738]
[1625470553840,0.006,34160.0,34159.0,2.95952282]
[1625470555649,0.006,34160.0,34159.0,3.97626747]
[1625470556152,0.006,34160.0,34159.0,3.91726747]
[1625470556906,0.006,34160.0,34159.0,3.97626747]
[1625470557356,0.006,34160.0,34159.0,3.91726747]
[1625470557453,0.006,34160.0,34159.0,3.97626747]
[1625470557554,0.006,34160.0,34159.0,3.91726747]
[1625470557655,0.006,34160.0,34159.0,3.97626747]
[1625470557756,0.006,34160.0,34159.0,3.91726747]
[1625470558558,0.006,34160.0,34159.0,3.97626747]
[1625470559259,0.24657544,34162.0,34159.0,3.97626747]
[1625470559608,0.24657544,34162.0,34161.0,4.5434]
[1625470559710,0.24657544,34162.0,34161.0,4.6594]
[1625470559807,0.24657544,34162.0,34161.0,0.116]
[1625470560009,0.24657544,34162.0,34161.0,0.12037943]
[1625470560109,0.24657544,34162.0,34161.0,3.68006577]
[1625470560661,0.24657544,34162.0,34161.0,2.32399478]
[1625470560811,0.24657544,34162.0,34161.0,7.05719478]
[1625470561463,0.24657544,34162.0,34161.0,2.32399478]
[1625470565369,0.24057544,34162.0,34161.0,2.32399478]
[1625470566772,0.24057544,34162.0,34161.0,7.01859478]
[1625470566871,0.24057544,34162.0,34161.0,2.32399478]
[1625470567524,0.24057544,34162.0,34161.0,3.6806162]
[1625470568175,0.006,34165.0,34161.0,3.6806162]
[1625470568624,0.006,34165.0,34164.0,1.01777225]
[1625470568725,0.24657544,34165.0,34164.0,1.69048769]
[1625470568925,0.24657544,34165.0,34164.0,1.69486736]
[1625470569075,0.24657544,34165.0,34164.0,2.88216139]
[1625470572886,0.24657544,34165.0,34164.0,4.24122004]
[1625470573082,0.24657544,34165.0,34164.0,4.30022004]
[1625470574236,0.24657544,34165.0,34164.0,5.82842105]
[1625470574335,0.24657544,34165.0,34164.0,5.91552105]
[1625470577140,0.24657544,34165.0,34164.0,5.85652105]
[1625470577340,0.24057544,34165.0,34164.0,5.85652105]
[1625470577441,0.24057544,34165.0,34164.0,5.76942105]
[1625470578397,0.24057544,34165.0,34164.0,4.24122004]
[1625470580351,0.24057544,34165.0,34164.0,5.77063054]
[1625470582807,0.34585715,34167.0,34164.0,5.5300551]
[1625470583061,0.34585715,34167.0,34165.0,0.00438156]
[1625470583156,0.34585715,34167.0,34165.0,0.06338156]
[1625470583258,0.34585715,34167.0,34166.0,3.56854043]
[1625470583359,0.34585715,34167.0,34166.0,3.62554043]